[Event "MČR v rapid šachu družstev 2019"]
[Site "Teplice, Czech Republic"]
[Date "2019.09.15"]
[Round "4.2"]
[White "Studnicka, Tomas"]
[Black "Kociscak, Jiri"]
[Result "0-1"]
[TimeControl "15 min. + 5s"]
[WhiteElo "2379"]
[BlackElo "2410"]

1. d4 {[%clk 00:15:09]} d5 {[%clk 00:15:06]} {[%emt 00:00:04]} 2. Bf4 {[%clk
00:15:11]} {[%emt 00:00:03]} e6 {[%clk 00:15:08]} {[%emt 00:00:03]} 3. e3
{[%clk 00:15:14]} {[%emt 00:00:03]} c5 {[%clk 00:15:11]} {[%emt 00:00:02]} 4.
c3 {[%clk 00:15:17]} {[%emt 00:00:02]} Nc6 {[%clk 00:15:13]} {[%emt 00:00:03]}
5. Nd2 {[%clk 00:15:20]} {[%emt 00:00:02]} Bd6 {[%clk 00:15:14]} {[%emt
00:00:05]} 6. Bg3 {[%clk 00:15:24]} {[%emt 00:00:01]} Nf6 {[%clk 00:15:16]}
{[%emt 00:00:02]} 7. Ngf3 {[%clk 00:15:29]} Bxg3 {[%clk 00:15:20]} {[%emt
00:00:02]} 8. hxg3 {[%clk 00:15:32]} {[%emt 00:00:02]} Qd6 {[%clk 00:15:24]}
{[%emt 00:00:01]} 9. Bb5 {[%clk 00:15:28]} {[%emt 00:00:09]} Bd7 {[%clk
00:15:25]} {[%emt 00:00:04]} 10. O-O {[%clk 00:15:16]} {[%emt 00:00:17]} O-O
{[%clk 00:15:21]} {[%emt 00:00:09]} 11. Bxc6 {[%clk 00:14:53]} {[%emt
00:00:28]} Bxc6 {[%clk 00:15:24]} {[%emt 00:00:02]} 12. Ne5 {[%clk 00:14:56]}
{[%emt 00:00:02]} Nd7 {[%clk 00:14:22]} {[%emt 00:01:07]} 13. Ndf3 {[%clk
00:14:38]} {[%emt 00:00:23]} f6 {[%clk 00:14:22]} {[%emt 00:00:06]} 14. Nxd7
{[%clk 00:14:32]} {[%emt 00:00:11]} Bxd7 {[%clk 00:14:19]} {[%emt 00:00:07]} 15.
Qd2 {[%clk 00:14:35]} {[%emt 00:00:02]} Rad8 {[%clk 00:14:08]} {[%emt
00:00:16]} 16. b4 {[%clk 00:14:17]} {[%emt 00:00:23]} b6 {[%clk 00:14:02]}
{[%emt 00:00:11]} 17. Rab1 {[%clk 00:13:45]} {[%emt 00:00:37]} Bc6 {[%clk
00:13:57]} {[%emt 00:00:10]} 18. Rfd1 {[%clk 00:12:44]} {[%emt 00:01:06]} cxb4
{[%clk 00:13:20]} {[%emt 00:00:42]} 19. cxb4 {[%clk 00:12:45]} {[%emt
00:00:04]} Bb5 {[%clk 00:13:24]} 20. Rdc1 {[%clk 00:12:25]} {[%emt 00:00:26]}
Bc4 {[%clk 00:13:28]} {[%emt 00:00:01]} 21. a3 {[%clk 00:11:55]} {[%emt
00:00:35]} Rc8 {[%clk 00:13:16]} {[%emt 00:00:16]} 22. Qd1 {[%clk 00:11:36]}
{[%emt 00:00:23]} e5 {[%clk 00:13:11]} {[%emt 00:00:11]} 23. Rb2 {[%clk
00:11:15]} {[%emt 00:00:26]} Rc7 {[%clk 00:10:29]} {[%emt 00:02:47]} 24. Ra1
{[%clk 00:09:18]} {[%emt 00:02:03]} e4 {[%clk 00:10:14]} {[%emt 00:00:19]} 25.
Nd2 {[%clk 00:09:17]} {[%emt 00:00:06]} Bd3 {[%clk 00:10:18]} {[%emt 00:00:01]}
26. Nb3 {[%clk 00:08:22]} {[%emt 00:01:01]} Rfc8 {[%clk 00:10:01]} {[%emt
00:00:21]} 27. Nc1 {[%clk 00:08:26]} {[%emt 00:00:01]} Bc2 {[%clk 00:09:34]}
{[%emt 00:00:32]} 28. Qg4 {[%clk 00:08:21]} {[%emt 00:00:10]} Ba4 {[%clk
00:07:38]} {[%emt 00:02:01]} 29. Ne2 {[%clk 00:08:05]} {[%emt 00:00:21]} Bd7
{[%clk 00:07:41]} {[%emt 00:00:02]} 30. Qh5 {[%clk 00:07:57]} {[%emt 00:00:12]}
Be8 {[%clk 00:07:06]} {[%emt 00:00:40]} 31. Qg4 {[%clk 00:07:53]} {[%emt
00:00:10]} h5 {[%clk 00:06:30]} {[%emt 00:00:41]} 32. Qh3 {[%clk 00:07:27]}
{[%emt 00:00:31]} g5 {[%clk 00:06:27]} {[%emt 00:00:08]} 33. Rbb1 {[%clk
00:06:44]} {[%emt 00:00:48]} Kg7 {[%clk 00:05:55]} {[%emt 00:00:38]} 34. Rc1
{[%clk 00:06:47]} {[%emt 00:00:02]} Bd7 {[%clk 00:05:58]} {[%emt 00:00:02]} 35.
Qh1 {[%clk 00:05:08]} {[%emt 00:01:44]} Bg4 {[%clk 00:05:51]} {[%emt 00:00:11]}
36. f3 {[%clk 00:05:12]} {[%emt 00:00:01]} Rxc1+ {[%clk 00:05:36]} {[%emt
00:00:20]} 37. Rxc1 {[%clk 00:05:07]} {[%emt 00:00:10]} exf3 {[%clk 00:05:09]}
{[%emt 00:00:31]} 38. gxf3 {[%clk 00:05:09]} {[%emt 00:00:03]} Rxc1+ {[%clk
00:05:10]} {[%emt 00:00:03]} 39. Nxc1 {[%clk 00:05:13]} {[%emt 00:00:02]} Qxg3+
{[%clk 00:05:13]} {[%emt 00:00:02]} 40. Kf1 {[%clk 00:04:42]} {[%emt 00:00:35]}
Bxf3 {[%clk 00:04:54]} {[%emt 00:00:24]} 41. Qg1 {[%clk 00:04:44]} {[%emt
00:00:04]} Qxg1+ {[%clk 00:04:52]} {[%emt 00:00:07]} 42. Kxg1 {[%clk 00:04:48]}
h4 {[%clk 00:04:56]} {[%emt 00:00:01]} 43. Nb3 {[%clk 00:04:15]} {[%emt
00:00:38]} Be4 {[%clk 00:04:43]} {[%emt 00:00:18]} 44. Nd2 {[%clk 00:04:00]}
{[%emt 00:00:19]} f5 {[%clk 00:04:47]} {[%emt 00:00:02]} 45. a4 {[%clk
00:03:58]} {[%emt 00:00:07]} g4 {[%clk 00:04:39]} {[%emt 00:00:13]} 46. Kh2
{[%clk 00:03:56]} {[%emt 00:00:07]} Kf6 {[%clk 00:04:41]} {[%emt 00:00:02]} 47.
a5 {[%clk 00:04:00]} {[%emt 00:00:01]} bxa5 {[%clk 00:04:38]} {[%emt 00:00:08]}
48. bxa5 {[%clk 00:04:04]} {[%emt 00:00:01]} a6 {[%clk 00:04:43]} 49. Nb3
{[%clk 00:04:08]} {[%emt 00:00:02]} Kg5 {[%clk 00:04:46]} {[%emt 00:00:02]} 50.
Nc5 {[%clk 00:04:11]} g3+ {[%clk 00:04:46]} {[%emt 00:00:05]} 51. Kh3 {[%clk
00:04:16]} g2 {[%clk 00:04:27]} {[%emt 00:00:24]} 52. Kh2 {[%clk 00:04:20]} Kg4
{[%clk 00:04:31]} 0-1

[Event "MČR v rapid šachu družstev 2019"]
[Site "Teplice, Czech Republic"]
[Date "2019.09.15"]
[Round "4.3"]
[White "Polak, Tomas"]
[Black "Sodoma, Jan"]
[Result "1-0"]
[TimeControl "15 min. + 5s"]
[WhiteElo "2515"]
[BlackElo "2358"]

1. d4 {[%clk 00:15:08]} {[%emt 00:00:01]} Nf6 {[%clk 00:15:09]} {[%emt
00:00:02]} 2. c4 {[%clk 00:15:12]} {[%emt 00:00:01]} e6 {[%clk 00:15:12]}
{[%emt 00:00:01]} 3. Nf3 {[%clk 00:15:16]} b6 {[%clk 00:15:15]} {[%emt
00:00:04]} 4. g3 {[%clk 00:15:19]} {[%emt 00:00:02]} Bb7 {[%clk 00:15:18]}
{[%emt 00:00:01]} 5. Bg2 {[%clk 00:15:23]} {[%emt 00:00:01]} Be7 {[%clk
00:15:22]} {[%emt 00:00:01]} 6. O-O {[%clk 00:15:25]} {[%emt 00:00:03]} O-O
{[%clk 00:15:25]} {[%emt 00:00:02]} 7. Nc3 {[%clk 00:15:27]} {[%emt 00:00:03]}
Na6 {[%clk 00:15:28]} {[%emt 00:00:02]} 8. Bf4 {[%clk 00:15:09]} {[%emt
00:00:24]} Ne4 {[%clk 00:15:10]} {[%emt 00:00:23]} 9. Qc2 {[%clk 00:15:09]}
{[%emt 00:00:04]} Nxc3 {[%clk 00:14:01]} {[%emt 00:01:14]} 10. bxc3 {[%clk
00:15:12]} {[%emt 00:00:02]} f5 {[%clk 00:13:42]} {[%emt 00:00:23]} 11. d5
{[%clk 00:15:15]} {[%emt 00:00:03]} Nc5 {[%clk 00:13:26]} {[%emt 00:00:21]} 12.
Nd4 {[%clk 00:15:17]} {[%emt 00:00:03]} g5 {[%clk 00:10:32]} {[%emt 00:02:59]}
13. Bd2 {[%clk 00:14:55]} {[%emt 00:00:28]} Bf6 {[%clk 00:10:33]} {[%emt
00:00:04]} 14. Rad1 {[%clk 00:12:45]} {[%emt 00:02:14]} Qe8 {[%clk 00:10:22]}
{[%emt 00:00:16]} 15. Nb5 {[%clk 00:12:10]} {[%emt 00:00:40]} Qc8 {[%clk
00:09:28]} {[%emt 00:00:59]} 16. Rfe1 {[%clk 00:11:34]} {[%emt 00:00:42]} a6
{[%clk 00:09:01]} {[%emt 00:00:32]} 17. Nd4 {[%clk 00:11:35]} {[%emt 00:00:03]}
Qe8 {[%clk 00:09:05]} {[%emt 00:00:02]} 18. Nb3 {[%clk 00:10:36]} {[%emt
00:01:04]} Ne4 {[%clk 00:06:59]} {[%emt 00:02:11]} 19. Bxe4 {[%clk 00:10:25]}
{[%emt 00:00:16]} fxe4 {[%clk 00:07:03]} {[%emt 00:00:01]} 20. Be3 {[%clk
00:10:26]} {[%emt 00:00:04]} exd5 {[%clk 00:06:40]} {[%emt 00:00:28]} 21. cxd5
{[%clk 00:10:27]} {[%emt 00:00:03]} Qg6 {[%clk 00:06:01]} {[%emt 00:00:43]} 22.
c4 {[%clk 00:09:40]} {[%emt 00:00:53]} d6 {[%clk 00:05:43]} {[%emt 00:00:23]}
23. Nd4 {[%clk 00:08:32]} {[%emt 00:01:14]} Bc8 {[%clk 00:05:42]} {[%emt
00:00:05]} 24. f3 {[%clk 00:08:10]} {[%emt 00:00:27]} Bd7 {[%clk 00:04:31]}
{[%emt 00:01:16]} 25. Rf1 {[%clk 00:07:13]} {[%emt 00:01:02]} Rae8 {[%clk
00:04:28]} {[%emt 00:00:08]} 26. f4 {[%clk 00:07:10]} {[%emt 00:00:09]} gxf4
{[%clk 00:03:48]} {[%emt 00:00:45]} 27. Rxf4 {[%clk 00:07:02]} {[%emt
00:00:13]} Be5 {[%clk 00:03:08]} {[%emt 00:00:46]} 28. Rf2 {[%clk 00:04:57]}
{[%emt 00:02:09]} Rxf2 {[%clk 00:02:26]} {[%emt 00:00:47]} 29. Bxf2 {[%clk
00:05:00]} {[%emt 00:00:02]} Rf8 {[%clk 00:02:29]} {[%emt 00:00:03]} 30. Qd2
{[%clk 00:04:44]} {[%emt 00:00:21]} h5 {[%clk 00:01:50]} {[%emt 00:00:43]} 31.
Ne6 {[%clk 00:04:15]} {[%emt 00:00:35]} Rf5 {[%clk 00:01:06]} {[%emt 00:00:49]}
32. Qe3 {[%clk 00:03:56]} {[%emt 00:00:25]} h4 {[%clk 00:00:50]} {[%emt
00:00:21]} 33. Kh1 {[%clk 00:03:24]} {[%emt 00:00:37]} hxg3 {[%clk 00:00:46]}
{[%emt 00:00:09]} 34. Bxg3 {[%clk 00:03:21]} {[%emt 00:00:07]} Bxg3 {[%clk
00:00:37]} {[%emt 00:00:14]} 35. Rg1 {[%clk 00:03:21]} {[%emt 00:00:06]} Kf7
{[%emt 00:00:37]} 36. Rxg3 {[%clk 00:03:16]} {[%emt 00:00:09]} Rf1+ {[%clk
00:00:09]} {[%emt 00:00:02]} 37. Kg2 {[%clk 00:03:18]} {[%emt 00:00:04]} Qf5
{[%clk 00:00:12]} {[%emt 00:00:02]} 38. Ng5+ {[%clk 00:02:28]} {[%emt
00:00:54]} Ke8 {[%clk 00:00:15]} {[%emt 00:00:03]} 39. Nxe4 {[%clk 00:02:22]}
{[%emt 00:00:11]} Kd8 {[%clk 00:00:12]} {[%emt 00:00:08]} 40. Nf2 {[%clk
00:02:09]} {[%emt 00:00:18]} Rxf2+ {[%clk 00:00:11]} {[%emt 00:00:07]} 41. Qxf2
{[%clk 00:02:12]} {[%emt 00:00:01]} Qe4+ {[%clk 00:00:15]} {[%emt 00:00:01]} 42.
Qf3 {[%clk 00:02:08]} {[%emt 00:00:09]} 1-0

[Event "MČR v rapid šachu družstev 2019"]
[Site "Teplice, Czech Republic"]
[Date "2019.09.15"]
[Round "4.4"]
[White "Cech, Pavel"]
[Black "Vymazal, Bronislav"]
[Result "1-0"]
[TimeControl "15 min. + 5s"]
[WhiteElo "2394"]
[BlackElo "2347"]

1. d4 {[%clk 00:15:05]} {[%emt 00:00:04]} g6 {[%clk 00:15:08]} {[%emt
00:00:03]} 2. e4 {[%clk 00:15:07]} {[%emt 00:00:02]} Bg7 {[%clk 00:15:12]}
{[%emt 00:00:02]} 3. Nc3 {[%clk 00:15:10]} {[%emt 00:00:02]} c5 {[%clk
00:14:25]} {[%emt 00:00:52]} 4. dxc5 {[%clk 00:15:12]} {[%emt 00:00:03]} Qa5
{[%clk 00:14:28]} {[%emt 00:00:01]} 5. Bd2 {[%clk 00:13:42]} {[%emt 00:01:35]}
Qxc5 {[%clk 00:14:31]} {[%emt 00:00:02]} 6. Nd5 {[%clk 00:13:42]} {[%emt
00:00:05]} Na6 {[%clk 00:13:39]} {[%emt 00:00:57]} 7. Be3 {[%clk 00:12:39]}
{[%emt 00:01:08]} Qa5+ {[%clk 00:13:12]} {[%emt 00:00:32]} 8. c3 {[%clk
00:12:43]} {[%emt 00:00:01]} e6 {[%clk 00:12:18]} {[%emt 00:00:59]} 9. Bd4
{[%clk 00:12:20]} {[%emt 00:00:29]} f6 {[%clk 00:11:16]} {[%emt 00:01:07]} 10.
Ne3 {[%clk 00:12:23]} {[%emt 00:00:02]} Qc7 {[%clk 00:11:18]} {[%emt 00:00:03]}
11. Nf3 {[%clk 00:11:43]} {[%emt 00:00:44]} Ne7 {[%clk 00:11:06]} {[%emt
00:00:17]} 12. Bxa6 {[%clk 00:10:00]} {[%emt 00:01:49]} bxa6 {[%clk 00:11:10]}
{[%emt 00:00:01]} 13. c4 {[%clk 00:10:03]} {[%emt 00:00:01]} Bb7 {[%clk
00:11:09]} {[%emt 00:00:06]} 14. Qc2 {[%clk 00:09:59]} {[%emt 00:00:09]} O-O
{[%clk 00:09:10]} {[%emt 00:02:05]} 15. O-O {[%clk 00:10:02]} {[%emt 00:00:02]}
Rac8 {[%clk 00:08:45]} {[%emt 00:00:29]} 16. Nd2 {[%clk 00:08:31]} {[%emt
00:01:36]} d5 {[%clk 00:07:46]} {[%emt 00:01:03]} 17. exd5 {[%clk 00:08:32]}
{[%emt 00:00:05]} Nxd5 {[%clk 00:07:41]} {[%emt 00:00:09]} 18. Nxd5 {[%clk
00:07:46]} {[%emt 00:00:51]} Bxd5 {[%clk 00:07:44]} {[%emt 00:00:02]} 19. b3
{[%clk 00:07:45]} {[%emt 00:00:05]} e5 {[%clk 00:06:34]} {[%emt 00:01:15]} 20.
Bc3 {[%clk 00:07:48]} {[%emt 00:00:02]} Bc6 {[%clk 00:06:32]} {[%emt 00:00:08]}
21. Rad1 {[%clk 00:07:39]} {[%emt 00:00:13]} Qb7 {[%clk 00:06:18]} {[%emt
00:00:19]} 22. f3 {[%clk 00:07:41]} {[%emt 00:00:03]} f5 {[%clk 00:06:21]}
{[%emt 00:00:03]} 23. Qb2 {[%clk 00:07:34]} {[%emt 00:00:11]} Rfe8 {[%clk
00:06:22]} {[%emt 00:00:04]} 24. Rfe1 {[%clk 00:07:29]} {[%emt 00:00:11]} Qc7
{[%clk 00:05:30]} {[%emt 00:00:57]} 25. Nf1 {[%clk 00:06:57]} {[%emt 00:00:36]}
Re7 {[%clk 00:03:17]} {[%emt 00:02:18]} 26. Ne3 {[%clk 00:06:52]} {[%emt
00:00:10]} Rce8 {[%clk 00:03:10]} {[%emt 00:00:12]} 27. Nd5 {[%clk 00:06:12]}
{[%emt 00:00:45]} Bxd5 {[%clk 00:03:13]} {[%emt 00:00:02]} 28. Rxd5 {[%clk
00:06:16]} {[%emt 00:00:01]} e4 {[%clk 00:02:59]} {[%emt 00:00:18]} 29. Bxg7
{[%clk 00:06:12]} {[%emt 00:00:09]} Rxg7 {[%clk 00:03:03]} {[%emt 00:00:01]} 30.
fxe4 {[%clk 00:05:46]} {[%emt 00:00:31]} fxe4 {[%clk 00:03:07]} {[%emt
00:00:01]} 31. Qd4 {[%clk 00:05:48]} {[%emt 00:00:02]} Rge7 {[%clk 00:03:04]}
{[%emt 00:00:08]} 32. Qe3 {[%clk 00:04:55]} {[%emt 00:00:58]} Qc6 {[%clk
00:02:18]} {[%emt 00:00:51]} 33. Rf1 {[%clk 00:04:52]} {[%emt 00:00:08]} Qe6
{[%clk 00:02:13]} {[%emt 00:00:10]} 34. h3 {[%clk 00:04:55]} {[%emt 00:00:02]}
Rd7 {[%clk 00:02:04]} {[%emt 00:00:14]} 35. Rxd7 {[%clk 00:04:12]} {[%emt
00:00:48]} Qxd7 {[%clk 00:02:08]} {[%emt 00:00:01]} 36. Rf4 {[%clk 00:04:13]}
{[%emt 00:00:03]} Qd1+ {[%clk 00:02:05]} {[%emt 00:00:08]} 37. Kh2 {[%clk
00:04:17]} Qd6 {[%clk 00:02:08]} {[%emt 00:00:03]} 38. Kg1 {[%clk 00:03:54]}
{[%emt 00:00:28]} Qd1+ {[%clk 00:02:11]} {[%emt 00:00:02]} 39. Rf1 {[%clk
00:03:58]} {[%emt 00:00:01]} Qd6 {[%clk 00:01:42]} {[%emt 00:00:33]} 40. Qxa7
{[%clk 00:03:55]} {[%emt 00:00:08]} Qe6 {[%clk 00:00:21]} {[%emt 00:01:27]} 41.
Qd4 {[%clk 00:03:56]} {[%emt 00:00:02]} e3 {[%clk 00:00:20]} {[%emt 00:00:06]}
42. Qd5 {[%clk 00:04:00]} {[%emt 00:00:01]} Qxd5 {[%clk 00:00:17]} {[%emt
00:00:08]} 43. cxd5 {[%clk 00:04:04]} {[%emt 00:00:01]} Re5 {[%clk 00:00:18]}
{[%emt 00:00:04]} 44. Rd1 {[%clk 00:03:59]} {[%emt 00:00:10]} Kf8 {[%clk
00:00:20]} {[%emt 00:00:03]} 45. d6 {[%clk 00:04:02]} {[%emt 00:00:03]} Ke8
{[%clk 00:00:24]} 46. g4 {[%clk 00:03:47]} {[%emt 00:00:20]} Kd7 {[%clk
00:00:27]} {[%emt 00:00:02]} 47. Kg2 {[%clk 00:03:51]} Rc5 {[%clk 00:00:09]}
{[%emt 00:00:23]} 48. Kf3 {[%clk 00:03:50]} {[%emt 00:00:06]} Rc2 {[%clk
00:00:13]} {[%emt 00:00:01]} 49. Kxe3 {[%clk 00:03:41]} {[%emt 00:00:13]} Rxa2
{[%clk 00:00:15]} {[%emt 00:00:03]} 50. Kf4 {[%clk 00:03:40]} {[%emt 00:00:06]}
Ra3 {[%clk 00:00:15]} {[%emt 00:00:05]} 51. Rd3 {[%clk 00:03:33]} {[%emt
00:00:12]} a5 {[%clk 00:00:19]} {[%emt 00:00:01]} 52. Ke4 {[%clk 00:03:37]} Ra1
{[%clk 00:00:06]} {[%emt 00:00:18]} 53. Kd5 {[%clk 00:03:31]} {[%emt 00:00:11]}
Rc1 {[%clk 00:00:10]} {[%emt 00:00:02]} 54. Rf3 {[%clk 00:03:24]} {[%emt
00:00:12]} Rd1+ {[%clk 00:00:15]} 55. Kc5 {[%clk 00:03:28]} Rc1+ {[%clk
00:00:11]} {[%emt 00:00:09]} 56. Kb5 {[%clk 00:03:30]} {[%emt 00:00:02]} Kxd6
{[%clk 00:00:14]} {[%emt 00:00:02]} 57. Kxa5 {[%clk 00:03:34]} {[%emt
00:00:01]} Ra1+ {[%clk 00:00:07]} {[%emt 00:00:12]} 58. Kb5 {[%clk 00:03:36]}
{[%emt 00:00:02]} Rh1 {[%clk 00:00:09]} {[%emt 00:00:03]} 59. b4 {[%clk
00:03:39]} {[%emt 00:00:02]} g5 {[%clk 00:00:09]} {[%emt 00:00:04]} 60. Kb6
{[%clk 00:03:42]} {[%emt 00:00:02]} Rb1 {[%clk 00:00:10]} {[%emt 00:00:04]} 61.
b5 {[%clk 00:03:45]} {[%emt 00:00:02]} Rb2 {[%clk 00:00:06]} {[%emt 00:00:09]}
62. Rf6 {[%clk 00:03:34]} {[%emt 00:00:16]} Kd7 {[%clk 00:00:10]} {[%emt
00:00:02]} 63. Rf7+ {[%clk 00:03:36]} {[%emt 00:00:02]} Kd6 {[%clk 00:00:14]}
64. Rxh7 {[%clk 00:03:40]} {[%emt 00:00:03]} Rb3 {[%clk 00:00:18]} 65. Rh6
{[%clk 00:03:36]} {[%emt 00:00:08]} Kd7 {[%clk 00:00:21]} {[%emt 00:00:02]} 66.
Kc5 {[%clk 00:03:36]} {[%emt 00:00:05]} Rc3+ {[%clk 00:00:24]} {[%emt
00:00:02]} 67. Kd5 {[%clk 00:03:39]} {[%emt 00:00:01]} Rb3 {[%clk 00:00:28]}
{[%emt 00:00:01]} 68. b6 {[%clk 00:03:42]} {[%emt 00:00:02]} Rb5+ {[%clk
00:00:32]} {[%emt 00:00:01]} 69. Ke4 {[%clk 00:03:44]} {[%emt 00:00:03]} Kc8
{[%clk 00:00:35]} {[%emt 00:00:02]} 70. Rd6 {[%clk 00:02:19]} {[%emt 00:01:29]}
Rb3 {[%clk 00:00:34]} {[%emt 00:00:07]} 71. Kf5 {[%clk 00:02:22]} {[%emt
00:00:02]} Rxh3 {[%clk 00:00:28]} {[%emt 00:00:11]} 72. Kxg5 {[%clk 00:02:25]}
{[%emt 00:00:02]} 1-0

[Event "MČR v rapid šachu družstev 2019"]
[Site "Teplice, Czech Republic"]
[Date "2019.09.15"]
[Round "4.5"]
[White "Bernasek, Jan"]
[Black "Jirovsky, Milos"]
[Result "1-0"]
[TimeControl "15 min. + 5s"]
[WhiteElo "2496"]
[BlackElo "2477"]

1. Nf3 {[%clk 00:15:08]} {[%emt 00:06:29]} d5 {[%clk 00:15:09]} {[%emt
00:00:02]} 2. e3 {[%clk 00:15:12]} {[%emt 00:00:01]} Nf6 {[%clk 00:15:04]}
{[%emt 00:00:11]} 3. c4 {[%clk 00:15:16]} {[%emt 00:00:01]} e6 {[%clk
00:15:08]} 4. b3 {[%clk 00:15:16]} {[%emt 00:00:06]} c5 {[%clk 00:15:07]}
{[%emt 00:00:07]} 5. Bb2 {[%clk 00:15:16]} {[%emt 00:00:04]} Nc6 {[%clk
00:15:08]} {[%emt 00:00:04]} 6. cxd5 {[%clk 00:15:19]} {[%emt 00:00:02]} exd5
{[%clk 00:15:02]} {[%emt 00:00:12]} 7. Be2 {[%clk 00:15:08]} {[%emt 00:00:15]}
Bd6 {[%clk 00:14:27]} {[%emt 00:00:40]} 8. O-O {[%clk 00:15:10]} {[%emt
00:00:03]} O-O {[%clk 00:14:31]} {[%emt 00:00:02]} 9. d3 {[%clk 00:15:12]}
{[%emt 00:00:02]} Re8 {[%clk 00:14:31]} {[%emt 00:00:05]} 10. Nbd2 {[%clk
00:15:16]} {[%emt 00:00:02]} Bg4 {[%clk 00:13:56]} {[%emt 00:00:40]} 11. Rc1
{[%clk 00:15:07]} {[%emt 00:00:14]} Rc8 {[%clk 00:13:58]} {[%emt 00:00:03]} 12.
Re1 {[%clk 00:14:46]} {[%emt 00:00:26]} Qe7 {[%clk 00:13:33]} {[%emt 00:00:30]}
13. Qc2 {[%clk 00:14:32]} {[%emt 00:00:19]} Ne5 {[%clk 00:13:17]} {[%emt
00:00:21]} 14. h3 {[%clk 00:14:17]} {[%emt 00:00:19]} Nxf3+ {[%clk 00:12:50]}
{[%emt 00:00:33]} 15. Nxf3 {[%clk 00:14:20]} {[%emt 00:00:02]} Bh5 {[%clk
00:12:48]} {[%emt 00:00:07]} 16. Qb1 {[%clk 00:14:09]} {[%emt 00:00:16]} Nd7
{[%clk 00:06:11]} {[%emt 00:06:42]} 17. Qa1 {[%clk 00:14:10]} {[%emt 00:00:04]}
f6 {[%clk 00:06:11]} {[%emt 00:00:05]} 18. d4 {[%clk 00:14:06]} {[%emt
00:00:08]} Bf7 {[%clk 00:05:59]} {[%emt 00:00:18]} 19. Ba3 {[%clk 00:13:12]}
{[%emt 00:00:59]} c4 {[%clk 00:04:33]} {[%emt 00:01:30]} 20. Bxd6 {[%clk
00:12:32]} {[%emt 00:00:44]} Qxd6 {[%clk 00:04:37]} {[%emt 00:00:01]} 21. bxc4
{[%clk 00:11:16]} {[%emt 00:01:21]} dxc4 {[%clk 00:04:41]} {[%emt 00:00:01]} 22.
Qb1 {[%clk 00:11:17]} {[%emt 00:00:05]} Rc7 {[%clk 00:04:36]} {[%emt 00:00:09]}
23. Nd2 {[%clk 00:10:58]} {[%emt 00:00:24]} Nb6 {[%clk 00:03:56]} {[%emt
00:00:45]} 24. Ne4 {[%clk 00:10:57]} {[%emt 00:00:06]} Qa3 {[%clk 00:02:59]}
{[%emt 00:01:02]} 25. Nc5 {[%clk 00:10:13]} {[%emt 00:00:49]} c3 {[%clk
00:02:54]} {[%emt 00:00:10]} 26. Bf3 {[%clk 00:10:03]} {[%emt 00:00:15]} Na4
{[%clk 00:02:46]} {[%emt 00:00:14]} 27. Nxb7 {[%clk 00:08:57]} {[%emt
00:01:10]} Rb8 {[%clk 00:00:51]} {[%emt 00:02:00]} 28. Qf5 {[%clk 00:09:00]}
{[%emt 00:00:02]} Qxa2 {[%clk 00:00:30]} {[%emt 00:00:26]} 29. Ra1 {[%clk
00:08:11]} {[%emt 00:00:54]} Qb3 {[%clk 00:00:32]} {[%emt 00:00:03]} 30. Qa5
{[%clk 00:07:35]} {[%emt 00:00:41]} Rbxb7 {[%clk 00:00:14]} {[%emt 00:00:23]}
31. Bxb7 {[%clk 00:07:36]} {[%emt 00:00:03]} Qxb7 {[%clk 00:00:18]} {[%emt
00:00:01]} 32. Qxa4 {[%clk 00:07:14]} {[%emt 00:00:28]} h5 {[%clk 00:00:15]}
{[%emt 00:00:08]} 33. e4 {[%clk 00:07:03]} {[%emt 00:00:16]} 1-0